bitfinex/quotes_BTCUSD_20220304
["timestamp","ask_amount","ask_price","bid_price","bid_amount"]
[1646415654188,0.26415505,40904.0,40898.0,0.001]
[1646415654189,0.412788,40902.0,40898.0,0.001]
[1646415654389,0.367788,40900.0,40898.0,0.001]
[1646415654589,0.34906038,40900.0,40898.0,0.001]
[1646415654789,0.39906038,40900.0,40898.0,0.001]
[1646415654991,0.53906038,40900.0,40898.0,0.001]
[1646415655191,0.53906038,40900.0,40879.0,0.1384]
[1646415655192,1.20684837,40900.0,40879.0,0.1384]
[1646415655440,1.20684837,40900.0,40880.0,0.3]
[1646415655441,1.17456215,40900.0,40880.0,0.3]
[1646415656038,1.17456215,40900.0,40874.0,0.001]
[1646415656039,1.37496606,40900.0,40874.0,0.301]
[1646415656240,1.32023733,40900.0,40892.0,0.00022767]
[1646415657339,1.17456215,40900.0,40892.0,0.00022767]
[1646415659708,1.17456215,40900.0,40883.0,0.001]
[1646415659903,1.17456215,40900.0,40892.0,0.00022767]
[1646415661003,1.17456215,40900.0,40892.0,0.00021816]
[1646415662007,1.17456215,40900.0,40883.0,0.001]
[1646415662206,1.17456215,40900.0,40892.0,0.00021816]
[1646415663245,1.17456215,40900.0,40883.0,0.301]
[1646415663447,1.17456215,40900.0,40892.0,0.00021816]
[1646415664446,1.17456215,40900.0,40883.0,0.001]
[1646415664647,1.02184837,40900.0,40884.0,0.28983662]
[1646415664847,1.02184837,40900.0,40885.0,0.3]
[1646415666149,1.16184837,40900.0,40885.0,0.3]
[1646415668288,1.16184837,40900.0,40892.0,0.00022553]
[1646415668688,1.06684837,40900.0,40892.0,0.00022553]
[1646415668892,1.17458852,40900.0,40892.0,0.00022553]
[1646415669293,0.061213,40896.0,40883.0,0.001]
[1646415669492,0.367788,40893.0,40892.0,0.00022553]
[1646415669691,0.73952969,40893.0,40892.0,0.00022553]
[1646415669889,0.73952969,40893.0,40891.0,0.00090212]
[1646415669890,1.717788,40892.0,40891.0,0.00090212]
[1646415670090,1.862788,40892.0,40891.0,0.00090212]
[1646415670288,1.862788,40892.0,40883.0,0.001]
[1646415670289,0.9,40891.0,40883.0,0.001]
[1646415670560,0.367793,40886.0,40874.0,0.001]
[1646415670764,0.367793,40879.0,40874.0,0.001]
[1646415670973,0.367793,40877.0,40874.0,0.001]
[1646415671160,0.0593764,40876.0,40874.0,0.001]
[1646415671361,0.367793,40875.0,40874.0,0.001]
[1646415671564,0.462793,40875.0,40874.0,0.001]
[1646415671765,0.562793,40875.0,40874.0,0.001]
[1646415671962,0.562793,40875.0,40865.0,0.001]
[1646415672162,0.367793,40873.0,40865.0,0.001]
[1646415672363,0.367793,40871.0,40865.0,0.001]
[1646415672563,0.412793,40871.0,40865.0,0.001]
[1646415672761,0.367803,40872.0,40871.0,0.02202417]
[1646415672961,0.5764822,40872.0,40871.0,0.02202417]
[1646415673363,0.63771005,40872.0,40871.0,0.02202417]
[1646415673964,0.47403085,40872.0,40871.0,0.02202417]
[1646415674197,0.42903085,40872.0,40871.0,0.02202417]
[1646415676590,0.367803,40872.0,40871.0,0.02202417]
[1646415676991,0.367803,40872.0,40871.0,0.28533244]
[1646415677191,0.367803,40872.0,40871.0,0.02202417]
[1646415677592,0.1,40873.0,40871.0,0.02202417]
[1646415678042,0.001,40878.0,40871.0,0.02202417]
[1646415678241,0.001,40878.0,40874.0,0.21459498]
[1646415678642,0.001,40878.0,40875.0,0.3]
[1646415678845,0.001,40878.0,40874.0,0.21459498]
[1646415679044,0.001,40878.0,40874.0,0.21480038]
[1646415679243,0.21121056,40882.0,40874.0,0.21480038]
[1646415680144,0.11121056,40882.0,40873.0,0.303]
[1646415680342,0.367803,40881.0,40876.0,0.0002054]
[1646415680541,0.417803,40881.0,40876.0,0.0002054]
[1646415680743,0.367803,40879.0,40876.0,0.0002054]
[1646415681144,0.1,40886.0,40877.0,0.65163326]
[1646415681344,0.1,40886.0,40878.0,0.3]
[1646415682391,0.15,40886.0,40878.0,0.3]
[1646415682594,0.1,40886.0,40880.0,0.00019797]
[1646415682791,0.1,40886.0,40881.0,0.026615]
[1646415683892,0.1,40886.0,40881.0,0.02681296]
[1646415684296,0.1,40886.0,40881.0,0.00019796]
[1646415684895,0.1,40886.0,40880.0,0.005]
[1646415685196,0.1,40886.0,40881.0,0.00019847]
[1646415685848,0.367803,40885.0,40881.0,0.00019847]
[1646415686148,0.367803,40885.0,40875.0,0.30079401]
[1646415686149,0.367803,40885.0,40875.0,0.3]
[1646415686350,0.367803,40885.0,40881.0,0.00019871]
[1646415686649,0.27774894,40884.0,40881.0,0.00019871]
[1646415686847,0.367803,40882.0,40881.0,0.00019871]
[1646415687253,0.17508809,40876.0,40871.0,0.02202417]
[1646415687448,0.367803,40882.0,40879.0,0.00019872]
[1646415687649,0.01135323,40880.0,40879.0,0.00019872]
[1646415687850,0.367803,40880.0,40879.0,0.00019872]
[1646415688050,0.417803,40880.0,40879.0,0.00019872]
[1646415688450,0.05,40880.0,40871.0,0.32202417]
[1646415688650,0.05,40880.0,40877.0,0.00019868]
[1646415688851,0.367803,40879.0,40877.0,0.00019868]
[1646415689050,0.417803,40879.0,40877.0,0.00019868]
[1646415689691,0.417803,40879.0,40871.0,0.32202417]
[1646415689692,0.05,40879.0,40871.0,0.32202417]
[1646415689895,0.367803,40878.0,40876.0,0.00019865]
[1646415690294,0.417803,40878.0,40876.0,0.00019865]
[1646415690494,0.05,40878.0,40876.0,0.00019865]
[1646415690892,0.1,40883.0,40871.0,0.32202417]
[1646415691093,0.367803,40882.0,40875.0,0.00019865]
[1646415691294,0.367803,40880.0,40875.0,0.00019865]
[1646415691694,0.479019,40880.0,40875.0,0.00019865]
[1646415692097,0.479019,40880.0,40871.0,0.55507389]
[1646415692098,0.21018517,40880.0,40871.0,0.32202417]
[1646415692295,0.367803,40879.0,40875.0,0.00019866]
[1646415693342,0.367803,40879.0,40871.0,0.02202417]
[1646415693542,0.367803,40879.0,40875.0,0.00019877]
[1646415694440,0.21018517,40880.0,40871.0,0.02202417]
[1646415694740,0.21018517,40880.0,40875.0,0.00019877]
[1646415694741,0.367803,40879.0,40875.0,0.00019877]
[1646415695144,0.5775192,40880.0,40875.0,0.00019877]
[1646415695145,0.367803,40877.0,40875.0,0.00019877]
[1646415695343,0.467803,40876.0,40875.0,0.00019877]
[1646415695741,0.15710692,40872.0,40871.0,0.02202417]
[1646415695940,0.52490992,40872.0,40871.0,0.02202417]
[1646415696141,0.367803,40872.0,40871.0,0.02202417]
[1646415697388,0.367803,40872.0,40871.0,0.02195753]
[1646415698190,0.57097426,40872.0,40871.0,0.02195753]
[1646415698388,0.367803,40872.0,40871.0,0.02195753]
[1646415698688,0.15,40873.0,40871.0,0.02195753]
[1646415699792,0.25,40873.0,40871.0,0.02195753]
[1646415699991,0.367803,40872.0,40871.0,0.02195753]
[1646415700646,0.15,40873.0,40871.0,0.02195753]
[1646415701446,0.15,40873.0,40871.0,0.22526596]
[1646415702547,0.15,40873.0,40872.0,0.3]
[1646415702747,0.15,40873.0,40871.0,0.22526596]
[1646415702951,0.367803,40878.0,40876.0,0.29999999]
[1646415703349,0.467803,40877.0,40876.0,0.29999999]
[1646415704198,0.417803,40877.0,40876.0,0.29999999]
[1646415704400,0.05,40877.0,40876.0,0.29999999]
[1646415704598,0.005,40879.0,40876.0,0.29999999]
[1646415704599,0.367803,40878.0,40876.0,0.29999999]
[1646415707939,0.38042363,40878.0,40876.0,0.29999999]
[1646415708144,0.367803,40877.0,40876.0,0.29999999]
[1646415710744,0.60418425,40877.0,40876.0,0.29999999]
[1646415711795,0.367803,40877.0,40876.0,0.29999999]
[1646415712697,0.53407222,40877.0,40876.0,0.29999999]
[1646415712995,0.367803,40877.0,40876.0,0.29999999]
[1646415718243,0.38505261,40877.0,40876.0,0.29999999]
[1646415720298,0.38308534,40877.0,40876.0,0.29999999]
[1646415720698,0.01528234,40877.0,40876.0,0.29999999]
[1646415720898,0.38308534,40877.0,40876.0,0.29999999]
[1646415721099,0.01528234,40877.0,40876.0,0.29999999]
[1646415721900,0.38308534,40877.0,40876.0,0.29999999]
[1646415722299,0.367803,40877.0,40876.0,0.29999999]
[1646415722499,0.01012137,40878.0,40876.0,0.29999999]
[1646415722941,0.01390915,40881.0,40876.0,0.29999999]
[1646415723143,0.367803,40880.0,40876.0,0.29999999]
[1646415723349,0.367803,40878.0,40876.0,0.29999999]
[1646415723543,0.367803,40878.0,40876.0,0.30020252]
[1646415724446,0.367803,40878.0,40876.0,0.29999999]
[1646415724743,0.11042989,40879.0,40876.0,0.29999999]
[1646415724744,0.367803,40877.0,40876.0,0.29999999]
[1646415724945,0.11042989,40879.0,40876.0,0.29999999]
[1646415725143,0.367803,40878.0,40876.0,0.29999999]
[1646415725444,0.41742759,40870.0,40865.0,0.19954659]
[1646415725746,0.41742759,40870.0,40869.0,0.96766685]
[1646415725942,0.41742759,40870.0,40869.0,0.59986385]
[1646415726143,0.41742759,40870.0,40869.0,0.668803]
[1646415726546,0.41742759,40870.0,40869.0,0.57519383]
[1646415727591,0.41742759,40870.0,40869.0,0.23412583]
[1646415727892,0.41742759,40870.0,40869.0,0.57519383]
[1646415729195,0.41742759,40870.0,40869.0,0.368803]
[1646415729391,0.41742759,40870.0,40869.0,0.001]
[1646415732962,0.23660061,40873.0,40872.0,0.06739526]
[1646415733162,0.60440361,40873.0,40872.0,0.06739526]
[1646415733664,0.65440361,40873.0,40872.0,0.06739526]
[1646415733865,0.59317661,40873.0,40872.0,0.06739526]
[1646415734896,0.417803,40873.0,40872.0,0.06739526]
[1646415735098,0.05,40873.0,40872.0,0.06739526]
[1646415735297,0.01595494,40874.0,40872.0,0.06739526]
[1646415735498,0.05,40876.0,40872.0,0.06739526]
[1646415735499,0.01527463,40875.0,40872.0,0.06739526]
[1646415735699,0.1,40878.0,40872.0,0.06739526]
[1646415735898,0.367803,40875.0,40872.0,0.06739526]
[1646415736100,0.001,40877.0,40872.0,0.06739526]
[1646415736700,0.001,40877.0,40872.0,0.06759274]
[1646415736899,0.367803,40876.0,40873.0,0.25433168]
[1646415737103,0.417803,40876.0,40873.0,0.25433168]
[1646415737299,0.05,40876.0,40873.0,0.25433168]
[1646415737503,0.05,40876.0,40873.0,0.55433168]
[1646415737701,0.0126955,40878.0,40873.0,0.55433168]
[1646415737944,0.16564723,40882.0,40873.0,0.25433168]
[1646415738149,0.152,40882.0,40873.0,0.55433168]
[1646415738345,0.01098559,40880.0,40873.0,0.55433168]
[1646415738749,0.18104772,40881.0,40873.0,0.55433168]
[1646415738946,0.01319602,40879.0,40873.0,0.55433168]
[1646415739146,0.01319602,40879.0,40873.0,0.55452952]
[1646415739345,0.46094364,40882.0,40873.0,0.55452952]
[1646415739948,0.16523387,40882.0,40873.0,0.55452952]
[1646415740146,0.01487666,40879.0,40874.0,0.367803]
[1646415740348,0.1249,40887.0,40880.0,0.20647113]
[1646415740349,0.0104277,40887.0,40880.0,0.20647113]
[1646415740546,0.14820799,40889.0,40881.0,0.3]
[1646415740747,0.01484515,40884.0,40873.0,0.30019858]
[1646415741046,0.01107091,40883.0,40874.0,0.367803]
[1646415741246,0.50364796,40886.0,40875.0,0.026672]
[1646415741445,0.01415427,40880.0,40874.0,0.367803]
[1646415741695,0.01415427,40880.0,40873.0,0.5574569]
[1646415741696,0.01461468,40879.0,40878.0,0.22311171]
[1646415741896,0.55364796,40886.0,40878.0,0.22311171]
[1646415742096,0.34766596,40886.0,40878.0,0.22311171]
[1646415742300,0.34766596,40886.0,40873.0,0.5574569]
[1646415742499,0.34766596,40886.0,40873.0,0.55725832]
[1646415742697,0.34766596,40886.0,40873.0,0.55745686]
[1646415742897,0.34766596,40886.0,40873.0,0.55825103]
[1646415743096,0.01311585,40885.0,40873.0,0.55825103]
[1646415743498,0.01746114,40883.0,40873.0,0.55825103]
[1646415743700,0.01504922,40882.0,40873.0,0.55725832]
[1646415743897,0.01421095,40881.0,40873.0,0.55745679]
[1646415744099,0.01467884,40880.0,40873.0,0.55745679]
[1646415744298,0.01396783,40879.0,40875.0,0.23014977]
[1646415744600,0.01703507,40878.0,40876.0,0.3]
[1646415744802,0.01786068,40877.0,40876.0,0.3]
[1646415744999,0.27864108,40887.0,40876.0,0.3]
[1646415745943,0.061206,40886.0,40876.0,0.3]
[1646415746144,0.122414,40886.0,40876.0,0.3]
[1646415746643,0.172414,40886.0,40876.0,0.3]
[1646415747449,0.367803,40885.0,40876.0,0.3]
[1646415747645,0.172414,40886.0,40873.0,0.00099245]
[1646415747646,0.11121,40886.0,40873.0,0.00099245]
[1646415747846,0.367803,40881.0,40873.0,0.00099245]
[1646415748046,0.35083185,40878.0,40873.0,0.00099245]
[1646415748345,0.71863485,40877.0,40873.0,0.00099245]
[1646415748548,0.35083185,40876.0,40872.0,0.06739526]
[1646415748745,0.367803,40875.0,40873.0,0.00019848]
[1646415749196,0.417803,40875.0,40873.0,0.00019848]
[1646415749796,0.417803,40875.0,40872.0,0.06739526]
[1646415749999,0.417803,40875.0,40872.0,0.06759374]
[1646415750997,0.417803,40875.0,40872.0,0.06739526]
[1646415751196,0.367803,40875.0,40872.0,0.06739526]
[1646415751998,0.17474539,40874.0,40872.0,0.06739526]
[1646415752200,0.367803,40873.0,40872.0,0.06739526]
[1646415752701,0.417803,40873.0,40872.0,0.06739526]
[1646415753349,0.59425873,40873.0,40872.0,0.06739526]
[1646415754751,0.69425873,40873.0,40872.0,0.06739526]
[1646415754950,0.517803,40873.0,40872.0,0.06739526]
[1646415755850,0.517803,40873.0,40872.0,0.06732019]
[1646415759819,0.417803,40873.0,40872.0,0.06732019]
[1646415760020,0.367803,40875.0,40872.0,0.06732019]
[1646415760219,0.35083185,40878.0,40872.0,0.06732019]
[1646415760220,0.367803,40877.0,40872.0,0.06732019]
[1646415760458,0.367803,40877.0,40873.0,0.24356479]
[1646415760752,0.367803,40877.0,40872.0,0.06732019]
[1646415760753,0.367803,40877.0,40872.0,0.06751867]
[1646415760954,0.006,40878.0,40872.0,0.06751867]
[1646415761353,0.36241125,40879.0,40872.0,0.06751867]
[1646415761555,0.367803,40878.0,40872.0,0.06751867]
[1646415761854,0.367803,40878.0,40874.0,0.27987319]
[1646415762455,0.417803,40878.0,40874.0,0.27987319]
[1646415762854,0.417803,40878.0,40872.0,0.06732019]
[1646415763057,0.417803,40878.0,40873.0,0.00019848]
[1646415764056,0.417803,40878.0,40872.0,0.06732019]
[1646415764298,0.417803,40878.0,40873.0,0.00019848]
[1646415765099,0.01574692,40877.0,40873.0,0.00019848]
[1646415765305,0.429025,40876.0,40872.0,0.06732019]
[1646415765604,0.367803,40874.0,40873.0,0.00019848]
[1646415765800,0.717803,40874.0,40873.0,0.00019848]
[1646415765999,0.87891998,40874.0,40873.0,0.00019848]
[1646415766199,0.73066394,40874.0,40873.0,0.00019848]
[1646415766399,0.87891998,40874.0,40873.0,0.00019848]
[1646415766601,0.061228,40873.0,40872.0,0.06732019]
[1646415766800,0.429031,40873.0,40872.0,0.06732019]
[1646415769565,0.367803,40873.0,40872.0,0.06732019]
[1646415770163,0.367803,40873.0,40872.0,0.05701395]
[1646415774606,0.01286094,40874.0,40872.0,0.05701395]
[1646415774805,0.367803,40873.0,40872.0,0.05701395]
[1646415776053,0.38211245,40873.0,40872.0,0.05701395]
[1646415776253,0.01286094,40874.0,40872.0,0.05701395]
[1646415776456,0.367803,40873.0,40872.0,0.05701395]
[1646415784048,0.71863485,40873.0,40872.0,0.05701395]
[1646415784653,0.81532099,40873.0,40872.0,0.05701395]
[1646415785653,0.95532099,40873.0,40872.0,0.05701395]
[1646415786053,1.25330174,40873.0,40872.0,0.05701395]
[1646415786698,0.92107092,40873.0,40872.0,0.05701395]
[1646415787401,0.97107092,40873.0,40872.0,0.05701395]
[1646415788000,0.86330174,40873.0,40872.0,0.05701395]
[1646415788197,1.00330174,40873.0,40872.0,0.05701395]
[1646415788400,0.75117873,40873.0,40872.0,0.05701395]
[1646415788600,1.2,40872.0,40870.0,0.00019848]
[1646415788804,0.79870738,40871.0,40870.0,0.00019848]
[1646415789001,1.35,40870.0,40862.0,0.001]
[1646415789201,0.37672224,40868.0,40862.0,0.001]
[1646415789403,0.37672224,40868.0,40859.0,0.001]
[1646415789404,1.35,40866.0,40859.0,0.001]
[1646415789601,0.69185499,40867.0,40856.0,0.001]
[1646415789602,0.429057,40862.0,40856.0,0.001]
[1646415789801,0.71857557,40860.0,40856.0,0.001]
[1646415790003,0.35077257,40859.0,40856.0,0.001]
[1646415790201,0.367803,40858.0,40856.0,0.001]
[1646415790455,0.35077257,40857.0,40856.0,0.001]
[1646415790755,0.35077257,40857.0,40855.0,0.00021216]
[1646415790756,0.367803,40856.0,40855.0,0.00021216]
[1646415790953,0.82549579,40856.0,40855.0,0.00021216]
[1646415791154,0.99826105,40856.0,40855.0,2.16e-06]
[1646415791358,0.367803,40853.0,40836.0,0.001]
[1646415791557,0.66838202,40847.0,40836.0,0.001]
[1646415791757,1.06029986,40847.0,40836.0,0.001]
[1646415791955,0.87099384,40847.0,40836.0,0.001]
[1646415792152,1.08153794,40847.0,40836.0,0.001]
[1646415792353,1.48938108,40847.0,40836.0,0.001]
[1646415792552,1.5400566,40847.0,40836.0,0.001]
[1646415792753,1.18938108,40847.0,40836.0,0.001]
[1646415793155,1.18938108,40847.0,40844.0,0.00578772]
[1646415793356,1.39536858,40847.0,40844.0,0.00578772]
[1646415793557,1.43156629,40847.0,40844.0,0.00578772]
[1646415794199,1.22557879,40847.0,40844.0,0.00564166]
[1646415794397,1.22557879,40847.0,40844.0,0.00578772]
[1646415794595,1.717803,40846.0,40837.0,0.00058434]
[1646415794807,0.36786,40842.0,40837.0,0.00058434]
[1646415794997,0.45688015,40841.0,40837.0,0.00058434]
[1646415795198,0.97474015,40841.0,40837.0,0.00058434]
[1646415795396,0.72474015,40841.0,40836.0,0.001]
[1646415795999,1.02474015,40841.0,40840.0,0.00062197]
[1646415796400,0.18283922,40838.0,40836.0,0.001]
[1646415796605,0.71686,40837.0,40836.0,0.001]
[1646415796798,0.86686,40837.0,40836.0,0.001]
[1646415797199,0.56686,40837.0,40836.0,0.001]
[1646415797599,0.70686,40837.0,40836.0,0.001]
[1646415797801,1.01898239,40837.0,40836.0,0.001]
[1646415798055,1.17959353,40837.0,40836.0,0.001]
[1646415798655,1.16447397,40837.0,40836.0,0.001]
[1646415799056,1.89470279,40837.0,40836.0,0.001]
[1646415799260,1.14750279,40837.0,40836.0,0.001]
[1646415800455,1.35,40836.0,40834.0,0.00014508]
[1646415800657,0.82476926,40835.0,40834.0,0.00014508]
[1646415800860,0.92476926,40835.0,40834.0,0.00014508]
[1646415801056,1.02476926,40835.0,40834.0,0.00014508]
[1646415801456,1.18539754,40835.0,40833.0,0.001]
[1646415801696,0.57576926,40834.0,40833.0,0.001]
[1646415801902,0.78539754,40834.0,40833.0,0.001]
[1646415802096,0.62476926,40834.0,40833.0,0.001]
[1646415802296,0.78539754,40834.0,40833.0,0.001]
[1646415802498,0.62476926,40834.0,40833.0,0.001]
[1646415802697,0.78539754,40834.0,40833.0,0.001]
[1646415802897,1.56786,40833.0,40831.0,0.02232759]
[1646415803099,0.8247719,40832.0,40831.0,0.02132759]
[1646415803304,0.8247719,40832.0,40825.0,0.00091048]
[1646415803305,1.71786,40831.0,40825.0,0.00091048]
[1646415803500,0.7472,40829.0,40809.0,0.1326]
[1646415803698,1.399,40830.0,40809.0,0.1326]
[1646415803699,0.36786,40826.0,40809.0,0.1326]
[1646415803899,0.36786,40824.0,40809.0,0.1326]
[1646415804099,0.36786,40819.0,40809.0,0.1326]
[1646415804299,0.4757719,40816.0,40809.0,0.1326]
[1646415804502,0.4757719,40816.0,40806.0,0.39057157]
[1646415804503,0.5747719,40816.0,40806.0,0.39057157]
[1646415804697,0.6747719,40816.0,40806.0,0.26047157]
[1646415805099,0.7247719,40816.0,40805.0,0.0011]
[1646415806150,0.7247719,40816.0,40805.0,0.27445924]
[1646415806349,0.7247719,40816.0,40813.0,0.00114389]
[1646415806752,0.89023152,40816.0,40813.0,0.00114389]
[1646415807350,0.89023152,40816.0,40805.0,0.0011]
[1646415807351,0.36786,40813.0,40805.0,0.0011]
[1646415807549,0.36786,40808.0,40805.0,0.0011]
[1646415807751,0.50786,40806.0,40805.0,0.0011]
[1646415807952,0.1,40807.0,40806.0,0.02780145]
[1646415807953,0.467959,40807.0,40806.0,0.02780145]
[1646415808155,0.79298726,40807.0,40806.0,0.02780145]
[1646415808353,0.616959,40807.0,40806.0,0.02780145]
[1646415808754,0.049,40807.0,40806.0,0.23323828]
[1646415808953,0.049,40807.0,40806.0,0.02780145]
[1646415809197,0.049,40807.0,40806.0,0.19521956]
[1646415809398,0.049,40807.0,40806.0,0.24531181]
[1646415810200,0.416959,40807.0,40806.0,0.02780145]
[1646415810498,0.099,40807.0,40806.0,0.02780145]
[1646415811198,0.05,40807.0,40806.0,0.02780145]
[1646415811599,0.367959,40808.0,40806.0,0.02780145]
[1646415811900,0.36786571,40808.0,40806.0,0.02780145]
[1646415812303,0.367952,40808.0,40806.0,0.02780145]
[1646415812499,0.35882451,40809.0,40806.0,0.02780145]
[1646415812500,0.367952,40807.0,40806.0,0.02780145]
[1646415812700,0.367952,40808.0,40806.0,0.02780145]
[1646415814374,0.05,40809.0,40806.0,0.02780145]
[1646415814375,0.05,40809.0,40807.0,0.02452]
[1646415814573,0.002,40812.0,40807.0,0.25882542]
[1646415814977,0.002,40812.0,40807.0,0.40622022]
[1646415815172,0.002,40812.0,40807.0,0.23430542]
[1646415815575,0.05,40811.0,40807.0,0.23430542]
[1646415815973,0.367952,40810.0,40807.0,0.2345151]
[1646415816174,0.417952,40810.0,40807.0,0.2345151]
[1646415816803,0.26064676,40809.0,40807.0,0.2345151]
[1646415817104,0.26064676,40809.0,40807.0,0.23430542]
[1646415817301,0.367952,40808.0,40807.0,0.23430542]
[1646415817701,0.417952,40808.0,40807.0,0.23430542]
[1646415817902,0.38570138,40807.0,40806.0,0.02801113]
[1646415818102,0.367952,40807.0,40806.0,0.02801113]
[1646415818302,0.417952,40807.0,40806.0,0.02780145]
[1646415818902,0.467952,40807.0,40806.0,0.02780145]
[1646415819302,0.607952,40807.0,40806.0,0.02780145]
[1646415819501,0.467952,40807.0,40806.0,0.02780145]
[1646415819704,0.607952,40807.0,40806.0,0.02780145]
[1646415820301,0.669281,40807.0,40806.0,0.02780145]
[1646415820957,0.70524584,40807.0,40806.0,0.02780145]
[1646415821558,1.00524584,40807.0,40806.0,0.02780145]
[1646415821960,0.9149381,40807.0,40806.0,0.02780145]
[1646415822361,1.2149381,40807.0,40806.0,0.02780145]
[1646415823362,0.9149381,40807.0,40806.0,0.02780145]
[1646415823761,0.75424584,40807.0,40806.0,0.02780145]
[1646415824997,0.82974584,40807.0,40806.0,0.02780145]
[1646415825400,0.9904381,40807.0,40806.0,0.02780145]
[1646415826202,1.4904381,40807.0,40806.0,0.02780145]
[1646415826600,1.36294121,40807.0,40806.0,0.02280145]
[1646415826801,0.8,40806.0,40805.0,0.0011]
[1646415827001,0.72900182,40806.0,40805.0,0.0011]
[1646415827202,0.88969408,40806.0,40805.0,0.0011]
[1646415828250,0.60334103,40806.0,40805.0,0.0011]
[1646415828453,0.60334103,40806.0,40803.0,0.00022622]
[1646415828454,0.817952,40805.0,40803.0,0.00022622]
[1646415828654,0.27965708,40804.0,40803.0,0.00022622]
[1646415828853,0.64760908,40804.0,40803.0,0.00022622]
[1646415829052,0.80830134,40804.0,40798.0,0.001]
[1646415829256,0.0913587,40802.0,40798.0,0.001]
[1646415829452,0.367952,40801.0,40798.0,0.001]
[1646415829853,0.367952,40799.0,40798.0,0.001]
[1646415830353,0.467952,40799.0,40798.0,0.001]
[1646415831356,0.767952,40799.0,40798.0,0.001]
[1646415831553,0.467952,40799.0,40798.0,0.001]
[1646415832204,0.517952,40799.0,40798.0,0.001]
[1646415833403,0.613862,40799.0,40798.0,0.001]
[1646415833603,0.913862,40799.0,40798.0,0.001]
[1646415834003,1.12360542,40799.0,40798.0,0.001]
[1646415834204,1.12360542,40799.0,40794.0,0.0002252]
[1646415834205,1.35,40798.0,40794.0,0.0002252]
[1646415834407,0.507952,40795.0,40794.0,0.0002252]
[1646415834604,0.82496722,40795.0,40794.0,0.0002252]
[1646415834801,0.97496722,40795.0,40794.0,0.0002252]
[1646415835003,0.97495927,40795.0,40794.0,0.0002252]
[1646415835202,1.13588638,40795.0,40794.0,0.0002252]
[1646415836250,1.567952,40794.0,40791.0,0.01]
[1646415836450,0.049,40793.0,40792.0,0.00013242]
[1646415836652,1.07769542,40793.0,40792.0,0.00013242]
[1646415836852,1.21769542,40793.0,40792.0,0.00013242]
[1646415837051,1.22769542,40793.0,40792.0,0.00013242]
[1646415837452,1.22769542,40793.0,40791.0,0.01]
[1646415837751,0.707952,40792.0,40790.0,0.00013242]
[1646415837952,1.579662,40791.0,40790.0,0.00013242]
[1646415838355,0.90843257,40791.0,40790.0,0.00013242]
[1646415838753,1.40861626,40791.0,40781.0,0.01]
[1646415839053,0.63861877,40789.0,40781.0,0.00607919]
[1646415839305,0.367952,40787.0,40781.0,0.00607919]
[1646415839500,0.199,40788.0,40781.0,0.00607919]
[1646415839501,0.367952,40785.0,40781.0,0.00607919]
[1646415839701,0.367952,40783.0,40781.0,0.00607919]
[1646415840301,0.417952,40783.0,40781.0,0.00607919]
[1646415840502,0.1,40782.0,40781.0,0.00607919]
[1646415840700,0.467952,40782.0,40781.0,0.00607919]
[1646415841905,0.467952,40782.0,40771.0,0.01]
[1646415841906,0.367952,40779.0,40771.0,0.01]
[1646415842205,0.367952,40777.0,40771.0,0.01]
[1646415842402,1.1962,40778.0,40766.0,0.0011]
[1646415842403,0.367952,40775.0,40766.0,0.0011]
[1646415842602,0.367952,40773.0,40766.0,0.0011]
[1646415842806,0.24111161,40768.0,40766.0,0.0011]
[1646415843054,0.367952,40764.0,40760.0,0.001]
[1646415843249,0.367952,40761.0,40756.0,0.0001]
[1646415843454,0.416952,40761.0,40756.0,0.0001]
[1646415843648,0.466952,40761.0,40756.0,0.0001]
[1646415843851,0.466952,40761.0,40756.0,0.00032534]
[1646415843852,0.367952,40759.0,40756.0,0.00032534]
[1646415844047,0.64925425,40758.0,40756.0,0.00032534]
[1646415844248,0.367952,40757.0,40756.0,0.00032534]
[1646415844450,0.367952,40757.0,40751.0,0.00742534]
[1646415844451,0.6,40756.0,40751.0,0.00742534]
[1646415844648,0.05,40757.0,40756.0,0.06833466]
[1646415844852,0.467182,40757.0,40756.0,0.06833466]
[1646415845050,0.528589,40757.0,40756.0,0.06833466]
[1646415845249,0.668589,40757.0,40756.0,0.06833466]
[1646415845551,0.52877269,40757.0,40756.0,0.05833466]
[1646415845749,0.63687017,40757.0,40756.0,0.05833466]
[1646415845952,0.63687017,40757.0,40756.0,0.0291556]
[1646415846154,0.93687017,40757.0,40756.0,0.0291556]
[1646415846350,1.03687017,40757.0,40756.0,0.0291556]
[1646415846551,1.0,40756.0,40751.0,0.00742534]
[1646415846846,0.53769348,40752.0,40751.0,0.00742534]
[1646415847041,0.58669348,40752.0,40751.0,0.00742534]
[1646415847241,0.9721558,40752.0,40751.0,0.00742534]
[1646415848141,0.9721558,40752.0,40734.0,0.4903]
[1646415848142,0.86507735,40751.0,40734.0,0.4903]
[1646415848342,0.33079627,40744.0,40729.0,0.122838]
[1646415848550,0.252473,40743.0,40740.0,0.00022435]
[1646415849142,0.049,40743.0,40740.0,0.00022435]
[1646415849542,0.049,40743.0,40742.0,0.24333086]
[1646415850145,0.049,40743.0,40742.0,0.61151286]
[1646415850345,0.049,40743.0,40742.0,0.68495428]
[1646415850556,0.049,40743.0,40742.0,0.73495428]
[1646415850757,0.049,40743.0,40742.0,0.29333086]
[1646415851357,0.002,40744.0,40742.0,0.41612986]
[1646415851557,0.00018369,40743.0,40742.0,0.41612986]
[1646415851857,0.00018369,40743.0,40742.0,0.59236036]
[1646415852159,0.00018369,40743.0,40742.0,0.61688036]
[1646415852359,0.00018369,40743.0,40742.0,0.59236036]
[1646415852761,0.3,40753.0,40743.0,0.00033759]
[1646415852960,0.05,40754.0,40745.0,0.061402]
[1646415853158,0.3,40762.0,40750.0,0.2445474]
[1646415853159,0.368182,40761.0,40750.0,0.2445474]
[1646415853359,0.203473,40757.0,40745.0,0.061402]
[1646415853558,0.203473,40757.0,40747.0,0.00021304]
[1646415853960,0.368182,40754.0,40747.0,0.00021304]
[1646415854404,0.368182,40754.0,40749.0,0.22846144]
[1646415854901,0.368182,40754.0,40751.0,0.21460356]
[1646415855100,0.368182,40754.0,40749.0,0.22846144]
[1646415855500,0.368182,40762.0,40749.0,0.22846144]